fUST/lending_fUST_20240910
["ID","MTS","AMOUNT","RATE_DAILY","PERIOD"]
[337691156,1725965442445,-500.0,0.00019799,2]
[337691157,1725965442455,-500.0,0.00019799,2]
[337691158,1725965442464,-2278.72,0.00019799,2]
[337691159,1725965442474,-151.0,0.00019799,2]
[337691160,1725965442483,-151.0,0.00019799,2]
[337691161,1725965442493,-500.0,0.00019799,2]
[337691162,1725965442503,-500.0,0.00019799,2]
[337691163,1725965442512,-594.46,0.00019799,2]
[337691164,1725965442521,-151.0,0.00019799,2]
[337691165,1725965442530,-500.0,0.00019799,2]
[337691166,1725965442539,-500.0,0.00019799,2]
[337691167,1725965442548,-533.04913794,0.00019799,2]
[337691168,1725965442557,-500.0,0.00019799,2]
[337691169,1725965442566,-500.0,0.00019799,2]
[337691170,1725965442575,-151.0,0.00019799,2]
[337691171,1725965442584,-505.96516295,0.00019799,2]
[337691172,1725965442595,-500.0,0.00019799,2]
[337691173,1725965442604,-58236.35,0.00019799,2]
[337691174,1725965442615,-151.0,0.00019799,2]
[337691175,1725965442626,-500.0,0.00019799,2]
[337691176,1725965442636,-621.27,0.00019799,2]
[337691177,1725965442647,-488.257005,0.00019799,2]
[337691178,1725965442659,-2533.01,0.00019799,2]
[337691179,1725965442669,-488.257005,0.00019799,2]
[337691180,1725965442678,-151.0,0.00019799,2]
[337691181,1725965442688,-500.0,0.00019799,2]
[337691182,1725965442698,-2050.57,0.00019799,2]
[337691183,1725965442708,-191.43348125,0.00019799,2]
[337691184,1725965442718,-151.0,0.00019799,2]
[337691185,1725965442730,-151.0,0.00019799,2]
[337691186,1725965442740,-152.862217,0.00019799,2]
[337691187,1725965442750,-500.0,0.00019799,2]
[337691188,1725965442759,-151.0,0.00019799,2]
[337691189,1725965442770,-500.0,0.00019799,2]
[337691190,1725965442779,-452.19104262,0.00019799,2]
[337691191,1725965442791,-500.0,0.00019799,2]
[337691192,1725965442801,-407.60858833,0.00019799,2]
[337691193,1725965442813,-500.0,0.00019799,2]
[337691194,1725965442823,-500.0,0.00019799,2]
[337691195,1725965442832,-500.0,0.00019799,2]
[337691196,1725965442843,-500.0,0.00019799,2]
[337691197,1725965442853,-500.0,0.00019799,2]
[337691198,1725965442863,-500.0,0.00019799,2]
[337691199,1725965442874,-184.10078049,0.00019799,2]
[337691200,1725965442884,-500.0,0.00019799,2]
[337691201,1725965442894,-500.0,0.00019799,2]
[337691202,1725965442904,-500.0,0.00019799,2]
[337691203,1725965442916,-500.0,0.00019799,2]
[337691204,1725965442926,-500.0,0.00019799,2]
[337691205,1725965442937,-500.0,0.00019799,2]
[337691206,1725965442947,-500.0,0.00019799,2]
[337691207,1725965442958,-1751.63,0.00019799,2]
[337691208,1725965442967,-500.0,0.000198,2]
[337691209,1725965442976,-500.0,0.000198,2]
[337691210,1725965442986,-887.12,0.000198,2]
[337691211,1725965442995,-500.0,0.000198,2]
[337691212,1725965443005,-510.21552978,0.000198,2]
[337691213,1725965443014,-500.0,0.000198,2]
[337691214,1725965443023,-500.0,0.000198,2]
[337691215,1725965443033,-500.0,0.000198,2]
[337691216,1725965443042,-500.0,0.000198,2]
[337691217,1725965443051,-500.0,0.000198,2]
[337691218,1725965443061,-500.0,0.000198,2]
[337691219,1725965443070,-1352.95,0.000198,2]
[337691220,1725965443080,-727.93,0.000198,2]
[337691222,1725965443090,-500.0,0.000198,2]
[337691223,1725965443099,-500.0,0.000198,2]
[337691224,1725965443108,-599.97,0.000198,2]
[337691227,1725965443117,-534.07,0.000198,2]
[337691229,1725965443127,-507.94989365,0.000198,2]
[337691231,1725965443136,-501.74265565,0.000198,2]
[337691233,1725965443145,-500.0,0.000198,2]
[337691235,1725965443155,-1687.6,0.000198,2]
[337691236,1725965443164,-500.0,0.000198,2]
[337691237,1725965443173,-1551.46,0.000198,2]
[337691238,1725965443183,-254.89578595,0.000198,2]
[337691239,1725965443193,-500.0,0.000198,2]
[337691240,1725965443202,-500.0,0.000198,2]
[337691241,1725965443212,-510.23244367,0.000198,2]
[337691242,1725965443222,-500.0,0.000198,2]
[337691243,1725965443231,-500.0,0.000198,2]
[337691244,1725965443241,-544.28,0.000198,2]
[337691245,1725965443250,-500.0,0.000198,2]
[337691246,1725965443259,-500.0,0.000198,2]
[337691247,1725965443268,-1159.97,0.000198,2]
[337691248,1725965443277,-1233.72,0.000198,2]
[337691249,1725965443287,-500.0,0.000198,2]
[337691250,1725965443297,-1098.16,0.000198,2]
[337691251,1725965443308,-500.0,0.000198,2]
[337691252,1725965443317,-1792.41,0.000198,2]
[337691253,1725965443327,-500.0,0.000198,2]
[337691255,1725965443338,-500.0,0.000198,2]
[337691257,1725965443348,-500.0,0.000198,2]
[337691259,1725965443357,-500.0,0.000198,2]
[337691261,1725965443366,-500.0,0.000198,2]
[337691263,1725965443376,-500.0,0.000198,2]
[337691265,1725965443385,-1028.0,0.000198,2]
[337691267,1725965443396,-500.0,0.000198,2]
[337691269,1725965443405,-507.71566468,0.000198,2]
[337691271,1725965443417,-644.07,0.000198,2]
[337691273,1725965443426,-500.0,0.000198,2]
[337691275,1725965443435,-2020.12,0.000198,2]
[337691277,1725965443446,-594.17,0.000198,2]
[337691279,1725965443455,-638.89,0.000198,2]
[337691281,1725965443464,-638.89,0.000198,2]
[337691283,1725965443474,-638.89,0.000198,2]
[337691285,1725965443483,-638.89,0.000198,2]
[337691288,1725965443493,-638.89,0.000198,2]
[337691290,1725965443502,-854.32,0.000198,2]
[337691292,1725965443511,-500.0,0.000198,2]
[337691294,1725965443521,-500.0,0.000198,2]
[337691296,1725965443530,-4656.91,0.000198,2]
[337691298,1725965443540,-218.15357974,0.000198,2]
[337691300,1725965443550,-502.91650469,0.000198,2]
[337691302,1725965443559,-500.0,0.000198,2]
[337691304,1725965443568,-503.81408358,0.000198,2]
[337691306,1725965443578,-500.0,0.000198,2]
[337691307,1725965443588,-500.0,0.000198,2]
[337691309,1725965443598,-1716.36,0.000198,2]
[337691311,1725965443607,-500.0,0.000198,2]
[337691313,1725965443616,-500.0,0.000198,2]
[337691316,1725965443628,-503.92364613,0.000198,2]
[337691318,1725965443639,-500.0,0.000198,2]
[337691320,1725965443651,-500.0,0.000198,2]
[337691322,1725965443660,-1104.35,0.000198,2]
[337691324,1725965443672,-1000.75,0.000198,2]
[337691326,1725965443681,-151.0,0.000198,2]
[337691343,1725965443831,-500.0,0.000198,2]
[337691345,1725965443840,-1658.7,0.000198,2]
[337691347,1725965443849,-3621.59,0.000198,2]
[337691349,1725965443859,-2076.41,0.000198,2]
[337691351,1725965443868,-151.0,0.000198,2]
[337691353,1725965443877,-151.0,0.000198,2]
[337691354,1725965443886,-2166.61,0.000198,2]
[337691356,1725965443896,-265.016535,0.000198,2]
[337691358,1725965443905,-265.016535,0.000198,2]
[337691360,1725965443915,-265.016535,0.000198,2]
[337691362,1725965443924,-265.016535,0.000198,2]
[337691364,1725965443933,-518.7,0.000198,2]
[337691366,1725965443942,-151.0,0.000198,2]
[337691368,1725965443952,-151.0,0.000198,2]
[337691370,1725965443962,-500.0,0.000198,2]
[337691372,1725965443972,-739.68,0.000198,2]
[337691374,1725965443981,-151.0,0.000198,2]
[337691376,1725965443991,-151.0,0.000198,2]
[337691378,1725965444002,-500.0,0.000198,2]
[337691380,1725965444011,-4763.96,0.000198,2]
[337691383,1725965444021,-500.0,0.000198,2]
[337691385,1725965444030,-1575.5,0.000198,2]
[337691387,1725965444040,-500.0,0.000198,2]
[337691389,1725965444049,-156.49361723,0.000198,2]
[337691391,1725965444059,-500.0,0.000198,2]
[337691393,1725965444069,-4000.0,0.000198,2]
[337691395,1725965444079,-4000.0,0.000198,2]
[337691397,1725965444090,-4000.0,0.000198,2]
[337691399,1725965444099,-4000.0,0.000198,2]
[337691401,1725965444109,-1794.437912,0.000198,2]
[337691403,1725965444121,-151.0,0.000198,2]
[337691405,1725965444134,-151.0,0.000198,2]
[337691407,1725965444146,-1124.84,0.000198,2]
[337691409,1725965444155,-1503.94,0.000198,2]
[337691411,1725965444164,-500.0,0.000198,2]
[337691413,1725965444173,-448.07582262,0.000198,2]
[337691415,1725965444182,-500.0,0.000198,2]
[337691417,1725965444192,-500.0,0.000198,2]
[337691419,1725965444204,-1639.68,0.000198,2]
[337691421,1725965444214,-3664.68,0.000198,2]
[337691423,1725965444223,-648.36,0.000198,2]
[337691425,1725965444233,-1929.8,0.000198,2]
[337691426,1725965444243,-554.034942,0.000198,2]
[337691428,1725965444252,-151.0,0.000198,2]
[337691430,1725965444262,-554.034942,0.000198,2]
[337691433,1725965444272,-151.0,0.000198,2]
[337691434,1725965444281,-554.034942,0.000198,2]
[337691435,1725965444293,-151.0,0.000198,2]
[337691436,1725965444304,-554.034942,0.000198,2]
[337691437,1725965444314,-151.0,0.000198,2]
[337691438,1725965444324,-554.034942,0.000198,2]
[337691439,1725965444333,-554.034942,0.000198,2]
[337691440,1725965444342,-554.034942,0.000198,2]
[337691441,1725965444351,-554.034942,0.000198,2]
[337691442,1725965444361,-502.98841147,0.000198,2]
[337691443,1725965444370,-823.78,0.000198,2]
[337691444,1725965444380,-500.0,0.000198,2]
[337691445,1725965444389,-500.0,0.000198,2]
[337691446,1725965444399,-1814.4,0.000198,2]
[337691447,1725965444408,-266.386238,0.000198,2]
[337691448,1725965444418,-266.386238,0.000198,2]
[337691449,1725965444427,-266.386238,0.000198,2]
[337691450,1725965444436,-266.386238,0.000198,2]
[337691451,1725965444446,-266.386238,0.000198,2]
[337691452,1725965444455,-266.386238,0.000198,2]
[337691453,1725965444464,-266.386238,0.000198,2]
[337691454,1725965444475,-266.386238,0.000198,2]
[337691455,1725965444484,-266.386238,0.000198,2]
[337691456,1725965444494,-266.386238,0.000198,2]
[337691457,1725965444503,-151.0,0.000198,2]
[337691458,1725965444512,-151.0,0.000198,2]
[337691459,1725965444521,-525.85,0.000198,2]
[337691460,1725965444530,-151.0,0.000198,2]
[337691461,1725965444540,-151.0,0.000198,2]
[337691462,1725965444549,-151.0,0.000198,2]
[337691463,1725965444558,-500.0,0.000198,2]
[337691464,1725965444566,-151.0,0.000198,2]
[337691465,1725965444576,-151.0,0.000198,2]
[337691466,1725965444585,-500.0,0.000198,2]
[337691467,1725965444595,-151.0,0.000198,2]
[337691468,1725965444605,-151.0,0.000198,2]
[337691469,1725965444614,-500.0,0.000198,2]
[337691470,1725965444623,-500.0,0.000198,2]
[337691471,1725965444632,-503.21125443,0.000198,2]
[337691472,1725965444641,-151.0,0.000198,2]
[337691473,1725965444653,-151.0,0.000198,2]
[337691474,1725965444663,-238.886636,0.000198,2]
[337691475,1725965444672,-696.28,0.000198,2]
[337691476,1725965444682,-43222.49,0.000198,2]
[337691477,1725965444692,-500.0,0.000198,2]
[337691478,1725965444701,-869.84,0.000198,2]
[337691479,1725965444712,-500.0,0.000198,2]
[337691480,1725965444723,-500.0,0.000198,2]
[337691481,1725965444732,-500.0,0.000198,2]
[337691482,1725965444741,-500.0,0.000198,2]
[337691483,1725965444756,-151.0,0.000198,2]
[337691484,1725965444765,-151.0,0.000198,2]
[337691485,1725965444776,-151.0,0.000198,2]
[337691486,1725965444785,-151.0,0.000198,2]
[337691487,1725965444795,-151.0,0.000198,2]
[337691488,1725965444805,-151.0,0.000198,2]
[337691489,1725965444815,-151.0,0.000198,2]
[337691490,1725965444825,-178.720629,0.000198,2]
[337691491,1725965444834,-732.04,0.000198,2]
[337691492,1725965444844,-488.257005,0.000198,2]
[337691493,1725965444854,-488.257005,0.000198,2]
[337691494,1725965444865,-488.257005,0.000198,2]
[337691495,1725965444875,-488.257005,0.000198,2]
[337691496,1725965444884,-488.257005,0.000198,2]
[337691497,1725965444897,-500.0,0.000198,2]
[337691498,1725965444906,-577.43,0.000198,2]
[337691499,1725965444916,-488.257005,0.000198,2]
[337691500,1725965444925,-488.257005,0.000198,2]
[337691501,1725965444935,-488.257005,0.000198,2]
[337691502,1725965444944,-488.257005,0.000198,2]
[337691503,1725965444953,-488.257005,0.000198,2]
[337691504,1725965444963,-151.0,0.000198,2]
[337691505,1725965444973,-151.0,0.000198,2]
[337691506,1725965444982,-151.0,0.000198,2]
[337691507,1725965444992,-151.0,0.000198,2]
[337691508,1725965445001,-500.0,0.000198,2]
[337691509,1725965445011,-1052.4,0.000198,2]
[337691510,1725965445020,-151.0,0.000198,2]
[337691511,1725965445033,-6530.53,0.000198,2]
[337691512,1725965445045,-151.0,0.000198,2]
[337691513,1725965445054,-151.0,0.000198,2]
[337691514,1725965445063,-151.0,0.000198,2]
[337691515,1725965445072,-151.0,0.000198,2]
[337691516,1725965445082,-500.0,0.000198,2]
[337691517,1725965445091,-151.0,0.000198,2]
[337691518,1725965445100,-151.0,0.000198,2]
[337691519,1725965445110,-294.84518,0.000198,2]
[337691520,1725965445119,-784.06,0.000198,2]
[337691521,1725965445128,-500.0,0.000198,2]
[337691522,1725965445138,-554.18,0.000198,2]
[337691523,1725965445147,-10820.18465593,0.00019801,3]
[337691524,1725965445156,-500.0,0.00019801,2]
[337691525,1725965445165,-500.0,0.00019801,2]
[337691526,1725965445174,-500.0,0.00019801,2]
[337691527,1725965445184,-500.0,0.00019801,2]
[337691528,1725965445193,-500.0,0.00019801,2]
[337691529,1725965445202,-75174.17,0.00019801,2]
[337691530,1725965445211,-695.74,0.00019801,2]
[337691531,1725965445222,-552.61946,0.00019801,2]
[337691532,1725965445233,-500.0,0.00019801,2]
[337691533,1725965445242,-638.89,0.00019801,2]
[337691534,1725965445253,-638.89,0.00019801,2]
[337691535,1725965445262,-638.89,0.00019801,2]
[337691536,1725965445271,-638.89,0.00019801,2]
[337691537,1725965445281,-638.89,0.00019801,2]
[337691538,1725965445291,-638.89,0.00019801,2]
[337691539,1725965445300,-638.89,0.00019801,2]
[337691540,1725965445311,-500.0,0.00019801,2]
[337691541,1725965445321,-638.89,0.00019801,2]
[337691542,1725965445330,-552.61946,0.00019801,2]
[337691543,1725965445340,-1520.09,0.00019801,2]
[337691544,1725965445350,-639.937961,0.00019801,2]
[337691545,1725965445359,-639.937961,0.00019801,2]
[337691546,1725965445369,-639.937961,0.00019801,2]
[337691547,1725965445378,-639.937961,0.00019801,2]
[337691548,1725965445387,-786.05,0.00019801,2]
[337691549,1725965445397,-265.016535,0.00019801,2]
[337691550,1725965445406,-265.016535,0.00019801,2]
[337691551,1725965445415,-265.016535,0.00019801,2]
[337691552,1725965445426,-265.016535,0.00019801,2]
[337691553,1725965445435,-265.016535,0.00019801,2]
[337691554,1725965445444,-7622.91,0.00019801,2]
[337691555,1725965445454,-265.016535,0.00019801,2]
[337691556,1725965445463,-265.016535,0.00019801,2]
[337691557,1725965445472,-265.016535,0.00019801,2]
[337691558,1725965445482,-265.016535,0.00019801,2]
[337691559,1725965445491,-265.016535,0.00019801,2]
[337691560,1725965445501,-222.826076,0.00019801,2]
[337691561,1725965445511,-222.826076,0.00019801,2]
[337691562,1725965445521,-222.826076,0.00019801,2]
[337691563,1725965445531,-222.826076,0.00019801,2]
[337691564,1725965445540,-151.0,0.00019801,2]
[337691565,1725965445550,-151.0,0.00019801,2]
[337691566,1725965445558,-151.0,0.00019801,2]
[337691567,1725965445568,-2159.02,0.00019801,2]
[337691568,1725965445577,-512.49,0.00019801,2]
[337691569,1725965445587,-1049.2,0.00019801,2]
[337691570,1725965445596,-1491.24,0.00019801,2]
[337691571,1725965445605,-1734.35,0.00019801,2]
[337691572,1725965445614,-2187.85,0.00019801,2]
[337691573,1725965445624,-3344.96,0.00019801,2]
[337691574,1725965445633,-500.0,0.00019801,2]
[337691575,1725965445641,-554.034942,0.00019801,2]
[337691576,1725965445653,-554.034942,0.00019801,2]
[337691577,1725965445662,-554.034942,0.00019801,2]
[337691578,1725965445671,-554.034942,0.00019801,2]
[337691579,1725965445680,-500.0,0.00019801,2]
[337691580,1725965445691,-889.73,0.00019801,2]
[337691581,1725965445700,-266.386238,0.00019801,2]
[337691582,1725965445709,-266.386238,0.00019801,2]
[337691583,1725965445719,-266.386238,0.00019801,2]
[337691584,1725965445730,-266.386238,0.00019801,2]
[337691585,1725965445739,-585.5,0.00019801,2]
[337691586,1725965445748,-266.386238,0.00019801,2]
[337691587,1725965445757,-266.386238,0.00019801,2]
[337691588,1725965445766,-266.386238,0.00019801,2]
[337691589,1725965445776,-266.386228,0.00019801,2]
[337691590,1725965445786,-151.0,0.00019801,2]
[337691591,1725965445795,-156.890136,0.00019801,2]
[337691592,1725965445805,-500.0,0.00019801,2]
[337691593,1725965445816,-838.26,0.00019801,2]
[337691594,1725965445825,-500.0,0.00019801,2]
[337691595,1725965445834,-500.59499031,0.00019801,2]
[337691596,1725965445845,-500.0,0.00019801,2]
[337691597,1725965445855,-500.0,0.00019801,2]
[337691598,1725965445865,-500.0,0.00019801,2]
[337691599,1725965445874,-500.0,0.00019801,2]
[337691600,1725965445883,-500.0,0.00019801,2]
[337691601,1725965445892,-1636.26,0.00019801,2]
[337691602,1725965445902,-662.66,0.00019801,2]
[337691603,1725965445911,-151.0,0.00019801,2]
[337691604,1725965445921,-151.0,0.00019801,2]
[337691605,1725965445931,-151.0,0.00019801,2]
[337691606,1725965445942,-151.0,0.00019801,2]
[337691607,1725965445952,-731.18,0.00019801,2]
[337691608,1725965445963,-488.257005,0.00019801,2]
[337691609,1725965445973,-488.257005,0.00019801,2]
[337691610,1725965445983,-488.257005,0.00019801,2]
[337691611,1725965445995,-488.257005,0.00019801,2]
[337691612,1725965446007,-488.257005,0.00019801,2]
[337691613,1725965446018,-488.257005,0.00019801,2]
[337691614,1725965446027,-488.257005,0.00019801,2]
[337691615,1725965446038,-488.257003,0.00019801,2]
[337691616,1725965446047,-1349.92,0.00019801,2]
[337691617,1725965446057,-151.0,0.00019801,2]
[337691618,1725965446067,-151.0,0.00019801,2]
[337691619,1725965446076,-151.0,0.00019801,2]
[337691620,1725965446085,-151.0,0.00019801,2]
[337691621,1725965446095,-1791.15,0.00019801,2]
[337691623,1725965446104,-1560.56,0.00019802,2]
[337691624,1725965446113,-500.0,0.00019802,2]
[337691625,1725965446123,-500.0,0.00019802,2]
[337691626,1725965446132,-178.01214032,0.00019802,2]
[337691627,1725965446141,-500.0,0.00019802,2]
[337691628,1725965446150,-500.0,0.00019802,2]
[337691630,1725965446160,-500.0,0.00019802,2]
[337691632,1725965446170,-500.0,0.00019802,2]
[337691634,1725965446180,-751.08,0.00019802,2]
[337691635,1725965446191,-529.67269646,0.00019802,2]
[337691636,1725965446202,-500.0,0.00019802,2]
[337691637,1725965446212,-500.0,0.00019802,2]
[337691638,1725965446222,-500.0,0.00019802,2]
[337691639,1725965446231,-500.0,0.00019802,2]
[337691640,1725965446242,-500.0,0.00019802,2]
[337691641,1725965446253,-500.0,0.00019802,2]
[337691642,1725965446263,-500.0,0.00019802,2]
[337691643,1725965446272,-500.0,0.00019802,2]
[337691644,1725965446281,-500.0,0.00019802,2]
[337691645,1725965446291,-255.6674297,0.00019802,2]
[337691646,1725965446301,-500.0,0.00019802,2]
[337691648,1725965446311,-503.54279837,0.00019802,2]
[337691649,1725965446321,-500.0,0.00019802,2]
[337691650,1725965446330,-500.0,0.00019802,2]
[337691651,1725965446341,-506.45396888,0.00019802,2]
[337691652,1725965446351,-623.77,0.00019802,2]
[337691653,1725965446361,-500.0,0.00019802,2]
[337691654,1725965446371,-502.26417928,0.00019802,2]
[337691655,1725965446380,-500.0,0.00019802,2]
[337691656,1725965446390,-2056.98,0.00019802,2]
[337691657,1725965446400,-500.0,0.00019802,2]
[337691658,1725965446410,-500.0,0.00019802,2]
[337691659,1725965446420,-502.52196706,0.00019802,2]
[337691660,1725965446430,-500.0,0.00019802,2]
[337691661,1725965446439,-500.0,0.00019802,2]
[337691662,1725965446450,-500.0,0.00019802,2]
[337691663,1725965446459,-500.0,0.00019802,2]
[337691664,1725965446468,-747.92,0.00019802,2]
[337691665,1725965446478,-1180.7,0.00019802,2]
[337691666,1725965446487,-500.0,0.00019802,2]
[337691667,1725965446497,-3158.33117662,0.00019802,2]
[337691668,1725965446506,-500.0,0.00019802,2]
[337691669,1725965446515,-502.5778232,0.00019802,2]
[337691670,1725965446524,-500.0,0.00019802,2]
[337691671,1725965446534,-590.8,0.00019802,2]
[337691672,1725965446543,-502.07801065,0.00019802,2]
[337691673,1725965446683,-500.0,0.00019802,2]
[337691674,1725965446692,-500.0,0.00019802,2]
[337691675,1725965446703,-500.0,0.00019802,2]
[337691677,1725965446714,-1275.97,0.00019802,2]
[337691679,1725965446729,-500.0,0.00019802,2]
[337691681,1725965446738,-509.6037881,0.00019802,2]
[337691683,1725965446748,-531.23397292,0.00019802,2]
[337691685,1725965446759,-500.0,0.00019802,2]
[337691686,1725965446769,-500.0,0.00019802,2]
[337691688,1725965446779,-506.6441311,0.00019802,2]
[337691690,1725965446788,-500.0,0.00019802,2]
[337691692,1725965446797,-500.0,0.00019802,2]
[337691693,1725965446807,-500.0,0.00019802,2]
[337691695,1725965446816,-500.0,0.00019802,2]
[337691697,1725965446826,-500.0,0.00019802,2]
[337691699,1725965446835,-505.55480534,0.00019802,2]
[337691701,1725965446845,-502.99275609,0.00019802,2]
[337691702,1725965446854,-500.0,0.00019802,2]
[337691703,1725965446864,-504.67577351,0.00019802,2]
[337691704,1725965446873,-542.91584567,0.00019802,2]
[337691706,1725965446883,-500.0,0.00019802,2]
[337691707,1725965446892,-503.16320642,0.00019802,2]
[337691708,1725965446901,-500.0,0.00019802,2]
[337691709,1725965446910,-603.15,0.00019802,2]
[337691710,1725965446920,-500.0,0.00019802,2]
[337691711,1725965446929,-500.0,0.00019802,2]
[337691712,1725965446939,-669.86,0.00019802,2]
[337691713,1725965446948,-151.0,0.00019802,2]
[337691714,1725965446957,-500.0,0.00019802,2]
[337691715,1725965446966,-500.0,0.00019802,2]
[337691716,1725965446977,-501.02926265,0.00019802,2]
[337691717,1725965446987,-502.20021747,0.00019802,2]
[337691718,1725965446997,-151.0,0.00019802,2]
[337691719,1725965447006,-500.0,0.00019802,2]
[337691720,1725965447016,-267.5393726,0.00019802,2]
[337691721,1725965447025,-500.0,0.00019802,2]
[337691722,1725965447035,-500.0,0.00019802,2]
[337691723,1725965447044,-1368.12,0.00019802,2]
[337691724,1725965447054,-510.50565031,0.00019802,2]
[337691725,1725965447063,-500.0,0.00019802,2]
[337691726,1725965447073,-500.0,0.00019802,2]
[337691727,1725965447082,-500.0,0.00019802,2]
[337691728,1725965447092,-500.0,0.00019802,2]
[337691729,1725965447101,-500.0,0.00019802,2]
[337691730,1725965447111,-506.75939414,0.00019802,2]
[337691731,1725965447120,-212.92267992,0.00019802,2]
[337691732,1725965447130,-500.0,0.00019802,2]
[337691733,1725965447139,-500.0,0.00019802,2]
[337691734,1725965447148,-500.0,0.00019802,2]
[337691735,1725965447157,-500.0,0.00019802,2]
[337691736,1725965447166,-578.57,0.00019802,2]
[337691737,1725965447175,-500.0,0.00019802,2]
[337691738,1725965447184,-504.96329044,0.00019802,2]
[337691739,1725965447193,-500.0,0.00019802,2]
[337691740,1725965447203,-500.0,0.00019802,2]
[337691741,1725965447212,-500.0,0.00019802,2]
[337691742,1725965447222,-500.0,0.00019802,2]
[337691743,1725965447231,-500.0,0.00019802,2]
[337691744,1725965447240,-500.0,0.00019802,2]
[337691745,1725965447250,-500.0,0.00019802,2]
[337691746,1725965447259,-504.4577273,0.00019802,2]
[337691747,1725965447269,-500.0,0.00019802,2]
[337691748,1725965447280,-500.0,0.00019802,2]
[337691749,1725965447290,-500.0,0.00019802,2]
[337691750,1725965447301,-500.0,0.00019802,2]
[337691751,1725965447311,-767.31,0.00019802,2]
[337691752,1725965447321,-500.0,0.00019802,2]
[337691753,1725965447334,-500.0,0.00019802,2]
[337691754,1725965447343,-506.24,0.00019802,2]
[337691755,1725965447353,-228.15259625,0.00019802,2]
[337691756,1725965447363,-340.00527328,0.00019802,2]
[337691757,1725965447372,-500.0,0.00019802,2]
[337691758,1725965447382,-500.0,0.00019802,2]
[337691759,1725965447391,-500.0,0.00019802,2]
[337691760,1725965447401,-500.0,0.00019802,2]
[337691761,1725965447412,-151.0,0.00019802,2]
[337691762,1725965447421,-500.0,0.00019802,2]
[337691763,1725965447433,-500.0,0.00019802,2]
[337691764,1725965447442,-151.0,0.00019802,2]
[337691765,1725965447451,-869.57,0.00019802,2]
[337691766,1725965447461,-588.06716988,0.00019802,2]
[337691767,1725965447470,-500.0,0.00019802,2]
[337691768,1725965447480,-500.0,0.00019802,2]
[337691769,1725965447489,-184.399387,0.00019802,2]
[337691770,1725965447500,-500.0,0.00019802,2]
[337691771,1725965447509,-184.399387,0.00019802,2]
[337691772,1725965447518,-826.16,0.00019802,2]
[337691773,1725965447527,-916.01,0.00019802,2]
[337691774,1725965447537,-501.58509281,0.00019802,2]
[337691775,1725965447548,-500.0,0.00019802,2]
[337691776,1725965447558,-500.0,0.00019802,2]
[337691777,1725965447567,-151.0,0.00019802,2]
[337691778,1725965447576,-500.0,0.00019802,2]